[Event "Titled Tuesday Blitz November 22 Early 2022"]
[White "Shapiro, Daniel"]
[Black "Aloma Vidal, Robert"]
[WhiteFideId "2001780"]
[BlackFideId "2260409"]
[WhiteElo "2331"]
[BlackElo "2435"]
[Result "0-1"]
[Round "01"]
[TimeControl "180+1"]
[Date "2022.11.23"]
[WhiteClock "0:00:32"]
[BlackClock "0:00:54"]

1. d4 {[%clk 0:02:59]}  d5 {[%clk 0:02:59]} 2. c4 {[%clk 0:02:57]}  c6 {[%clk 0:03:00]} 3. Nf3 {[%clk 0:02:55]}  Nf6 {[%clk 0:03:00]} 4. Qb3 {[%clk 0:02:55]}  e6 {[%clk 0:02:59]} 5. Nc3 {[%clk 0:02:55]}  dxc4 {[%clk 0:02:59]} 6. Qxc4 {[%clk 0:02:55]}  b5 {[%clk 0:03:00]} 7. Qb3 {[%clk 0:02:53]}  a5 {[%clk 0:02:29]} 8. a3 {[%clk 0:02:45]}  Nbd7 {[%clk 0:02:13]} 9. Bg5 {[%clk 0:02:43]}  Bb7 {[%clk 0:02:03]} 10. e3 {[%clk 0:02:43]}  Be7 {[%clk 0:02:00]} 11. Be2 {[%clk 0:02:43]}  O-O {[%clk 0:02:00]} 12. O-O {[%clk 0:02:43]}  h6 {[%clk 0:02:01]} 13. Bh4 {[%clk 0:02:43]}  b4 {[%clk 0:01:59]} 14. axb4 {[%clk 0:02:29]}  axb4 {[%clk 0:02:00]} 15. Na4 {[%clk 0:02:24]}  c5 {[%clk 0:01:57]} 16. Rfd1 {[%clk 0:02:19]}  Bd5 {[%clk 0:01:54]} 17. Qc2 {[%clk 0:02:09]}  b3 {[%clk 0:01:37]} 18. Qc1 {[%clk 0:02:03]}  cxd4 {[%clk 0:01:35]} 19. exd4 {[%clk 0:01:56]}  Ne4 {[%clk 0:01:29]} 20. Bxe7 {[%clk 0:01:47]}  Qxe7 {[%clk 0:01:30]} 21. Qe3 {[%clk 0:01:40]}  Rfc8 {[%clk 0:01:28]} 22. Bd3 {[%clk 0:01:29]}  Nef6 {[%clk 0:01:17]} 23. Ne5 {[%clk 0:01:28]}  Qb4 {[%clk 0:01:17]} 24. Nc3 {[%clk 0:01:20]}  Nb6 {[%clk 0:01:13]} 25. Rac1 {[%clk 0:01:11]}  Na4 {[%clk 0:01:00]} 26. Nxa4 {[%clk 0:01:04]}  Qxa4 {[%clk 0:01:00]} 27. Bc4 {[%clk 0:00:51]}  Bxc4 {[%clk 0:00:58]} 28. Qf3 {[%clk 0:00:34]}  Bd5 {[%clk 0:00:58]} 29. Rxc8+ {[%clk 0:00:31]}  Rxc8 {[%clk 0:00:57]} 30. Qg3 {[%clk 0:00:32]}  Qxd4 {[%clk 0:00:54]} 0-1


[Site "https://www.chess.com"]

[Event "Titled Tuesday Blitz November 22 Early 2022"]
[White "Shuvalov, Evgenij"]
[Black "Castillo Pena, Patricia Evarista"]
[WhiteFideId "4187237"]
[BlackFideId "6412106"]
[WhiteElo "2049"]
[BlackElo "1919"]
[Result "1/2-1/2"]
[Round "01"]
[TimeControl "180+1"]
[Date "2022.11.23"]
[WhiteClock "0:00:08"]
[BlackClock "0:00:19"]

1. e4 {[%clk 0:02:43]}  c5 {[%clk 0:02:57]} 2. c3 {[%clk 0:02:42]}  d5 {[%clk 0:02:57]} 3. exd5 {[%clk 0:02:41]}  Qxd5 {[%clk 0:02:58]} 4. d4 {[%clk 0:02:41]}  Nf6 {[%clk 0:02:57]} 5. Nf3 {[%clk 0:02:39]}  Bg4 {[%clk 0:02:52]} 6. Be2 {[%clk 0:02:38]}  e6 {[%clk 0:02:48]} 7. O-O {[%clk 0:02:35]}  Be7 {[%clk 0:02:46]} 8. Na3 {[%clk 0:02:33]}  cxd4 {[%clk 0:02:43]} 9. Nb5 {[%clk 0:02:32]}  Qd7 {[%clk 0:02:32]} 10. Bf4 {[%clk 0:02:05]}  Na6 {[%clk 0:02:31]} 11. Ne5 {[%clk 0:01:54]}  Bxe2 {[%clk 0:02:29]} 12. Qxe2 {[%clk 0:01:55]}  Qd8 {[%clk 0:02:06]} 13. Rfd1 {[%clk 0:01:53]}  O-O {[%clk 0:02:00]} 14. Rxd4 {[%clk 0:01:45]}  Qb6 {[%clk 0:01:59]} 15. a4 {[%clk 0:01:32]}  Rfd8 {[%clk 0:01:57]} 16. a5 {[%clk 0:00:46]}  Qc5 {[%clk 0:01:33]} 17. b4 {[%clk 0:00:44]}  Qc8 {[%clk 0:01:30]} 18. Rad1 {[%clk 0:00:43]}  Rxd4 {[%clk 0:01:25]} 19. Rxd4 {[%clk 0:00:43]}  Nd5 {[%clk 0:01:19]} 20. Bd2 {[%clk 0:00:41]}  Nac7 {[%clk 0:01:07]} 21. Nxc7 {[%clk 0:00:36]}  Qxc7 {[%clk 0:01:04]} 22. Rc4 {[%clk 0:00:25]}  Qb8 {[%clk 0:00:58]} 23. g3 {[%clk 0:00:24]}  Qd8 {[%clk 0:00:47]} 24. Rd4 {[%clk 0:00:23]}  Qe8 {[%clk 0:00:45]} 25. Nd3 {[%clk 0:00:20]}  Bf6 {[%clk 0:00:44]} 26. Rc4 {[%clk 0:00:17]}  Rc8 {[%clk 0:00:43]} 27. Rxc8 {[%clk 0:00:15]}  Qxc8 {[%clk 0:00:44]} 28. Qe1 {[%clk 0:00:15]}  h6 {[%clk 0:00:43]} 29. Nc5 {[%clk 0:00:15]}  b6 {[%clk 0:00:41]} 30. Ne4 {[%clk 0:00:15]}  bxa5 {[%clk 0:00:39]} 31. Nxf6+ {[%clk 0:00:14]}  Nxf6 {[%clk 0:00:38]} 32. bxa5 {[%clk 0:00:14]}  Qa6 {[%clk 0:00:35]} 33. Qa1 {[%clk 0:00:13]}  Nd5 {[%clk 0:00:33]} 34. Qa3 {[%clk 0:00:12]}  Qc4 {[%clk 0:00:30]} 35. Be1 {[%clk 0:00:11]}  a6 {[%clk 0:00:27]} 36. Qb2 {[%clk 0:00:11]}  g6 {[%clk 0:00:25]} 37. Qb7 {[%clk 0:00:10]}  Nxc3 {[%clk 0:00:20]} 38. Bxc3 {[%clk 0:00:10]}  Qxc3 {[%clk 0:00:21]} 39. Qxa6 {[%clk 0:00:11]}  Qe1+ {[%clk 0:00:21]} 40. Kg2 {[%clk 0:00:10]}  Qe4+ {[%clk 0:00:21]} 41. Kg1 {[%clk 0:00:09]}  Qe1+ {[%clk 0:00:20]} 42. Kg2 {[%clk 0:00:09]}  Qd1 {[%clk 0:00:20]} 43. Qb6 {[%clk 0:00:08]}  Qd5+ {[%clk 0:00:19]} 44. Kg1 {[%clk 0:00:07]}  Qd1+ {[%clk 0:00:19]} 45. Kg2 {[%clk 0:00:08]}  Qd5+ {[%clk 0:00:20]} 46. Kf1 {[%clk 0:00:08]}  Qd1+ {[%clk 0:00:19]} 47. Kg2 {[%clk 0:00:08]} 1/2-1/2


[Site "https://www.chess.com"]

[Event "Titled Tuesday Blitz November 22 Early 2022"]
[White "Sipila, Vilka"]
[Black "Gedgafov, Chamal"]
[WhiteFideId "505455"]
[BlackFideId "34130621"]
[WhiteElo "2347"]
[BlackElo "2067"]
[Result "1-0"]
[Round "01"]
[TimeControl "180+1"]
[Date "2022.11.23"]
[WhiteClock "0:01:08"]
[BlackClock "0:00:36"]

1. d4 {[%clk 0:02:57]}  d5 {[%clk 0:02:59]} 2. Nf3 {[%clk 0:02:56]}  Nf6 {[%clk 0:02:59]} 3. Bf4 {[%clk 0:02:56]}  c5 {[%clk 0:02:59]} 4. e3 {[%clk 0:02:56]}  Nc6 {[%clk 0:02:59]} 5. Nbd2 {[%clk 0:02:54]}  Bg4 {[%clk 0:02:58]} 6. h3 {[%clk 0:02:51]}  Bh5 {[%clk 0:02:58]} 7. c3 {[%clk 0:02:41]}  e6 {[%clk 0:02:57]} 8. Qb3 {[%clk 0:02:41]}  Qb6 {[%clk 0:02:56]} 9. g4 {[%clk 0:02:40]}  Bg6 {[%clk 0:02:56]} 10. Ne5 {[%clk 0:02:40]}  c4 {[%clk 0:02:52]} 11. Qxb6 {[%clk 0:02:38]}  axb6 {[%clk 0:02:53]} 12. Nxg6 {[%clk 0:02:37]}  hxg6 {[%clk 0:02:52]} 13. a3 {[%clk 0:02:37]}  Nxg4 {[%clk 0:02:50]} 14. e4 {[%clk 0:02:34]}  Nf6 {[%clk 0:02:50]} 15. Bg2 {[%clk 0:02:33]}  b5 {[%clk 0:02:45]} 16. O-O-O {[%clk 0:02:32]}  b4 {[%clk 0:02:09]} 17. axb4 {[%clk 0:02:29]}  Kd7 {[%clk 0:01:46]} 18. Kc2 {[%clk 0:02:26]}  Be7 {[%clk 0:01:45]} 19. Ra1 {[%clk 0:02:21]}  b5 {[%clk 0:01:44]} 20. Bg5 {[%clk 0:02:16]}  Nxe4 {[%clk 0:01:32]} 21. Nxe4 {[%clk 0:02:12]}  dxe4 {[%clk 0:01:32]} 22. Bxe7 {[%clk 0:02:13]}  Nxe7 {[%clk 0:01:32]} 23. Bxe4 {[%clk 0:02:14]}  Nd5 {[%clk 0:01:32]} 24. Ra5 {[%clk 0:01:59]}  Rxa5 {[%clk 0:01:32]} 25. bxa5 {[%clk 0:02:00]}  f5 {[%clk 0:01:25]} 26. Bxd5 {[%clk 0:01:55]}  exd5 {[%clk 0:01:25]} 27. b4 {[%clk 0:01:55]}  Re8 {[%clk 0:01:19]} 28. Kd2 {[%clk 0:01:53]}  g5 {[%clk 0:01:15]} 29. Rg1 {[%clk 0:01:53]}  Rh8 {[%clk 0:01:04]} 30. Rxg5 {[%clk 0:01:52]}  Rxh3 {[%clk 0:01:05]} 31. Rxf5 {[%clk 0:01:30]}  Ke6 {[%clk 0:00:58]} 32. Rf8 {[%clk 0:01:27]}  Rh1 {[%clk 0:00:54]} 33. Re8+ {[%clk 0:01:18]}  Kd7 {[%clk 0:00:52]} 34. Rb8 {[%clk 0:01:17]}  Kc6 {[%clk 0:00:52]} 35. Rb6+ {[%clk 0:01:16]}  Kc7 {[%clk 0:00:52]} 36. Rxb5 {[%clk 0:01:17]}  Kc6 {[%clk 0:00:49]} 37. Rb6+ {[%clk 0:01:17]}  Kc7 {[%clk 0:00:50]} 38. Rg6 {[%clk 0:01:18]}  Ra1 {[%clk 0:00:49]} 39. Rxg7+ {[%clk 0:01:17]}  Kc6 {[%clk 0:00:49]} 40. Rg6+ {[%clk 0:01:17]}  Kc7 {[%clk 0:00:46]} 41. a6 {[%clk 0:01:16]}  Ra2+ {[%clk 0:00:47]} 42. Kc1 {[%clk 0:01:13]}  Rxf2 {[%clk 0:00:44]} 43. b5 {[%clk 0:01:12]}  Rf1+ {[%clk 0:00:40]} 44. Kb2 {[%clk 0:01:12]}  Rf2+ {[%clk 0:00:37]} 45. Ka3 {[%clk 0:01:12]}  Rc2 {[%clk 0:00:37]} 46. b6+ {[%clk 0:01:10]}  Kb8 {[%clk 0:00:36]} 47. Rg8# {[%clk 0:01:08]} 1-0


[Site "https://www.chess.com"]

[Event "Titled Tuesday Blitz November 22 Early 2022"]
[White "Skliarov, Viktor"]
[Black "Lauridsen, Jesper Morch"]
[WhiteFideId "14106736"]
[BlackFideId "1401890"]
[WhiteElo "2284"]
[BlackElo "2254"]
[Result "1-0"]
[Round "01"]
[TimeControl "180+1"]
[Date "2022.11.23"]
[WhiteClock "0:00:45"]
[BlackClock "0:00:08"]

1. e4 {[%clk 0:02:54]}  c5 {[%clk 0:02:58]} 2. Nf3 {[%clk 0:02:54]}  e6 {[%clk 0:02:58]} 3. c3 {[%clk 0:02:54]}  Nf6 {[%clk 0:02:57]} 4. Bd3 {[%clk 0:02:53]}  d5 {[%clk 0:02:55]} 5. e5 {[%clk 0:02:54]}  Nfd7 {[%clk 0:02:54]} 6. Bc2 {[%clk 0:02:54]}  Nc6 {[%clk 0:02:51]} 7. d4 {[%clk 0:02:53]}  c4 {[%clk 0:02:49]} 8. O-O {[%clk 0:02:52]}  Be7 {[%clk 0:02:48]} 9. Re1 {[%clk 0:02:47]}  h6 {[%clk 0:02:49]} 10. Nbd2 {[%clk 0:02:47]}  b5 {[%clk 0:02:48]} 11. Nf1 {[%clk 0:02:42]}  b4 {[%clk 0:02:46]} 12. Ng3 {[%clk 0:02:36]}  g6 {[%clk 0:02:36]} 13. h4 {[%clk 0:02:35]}  Bb7 {[%clk 0:02:27]} 14. h5 {[%clk 0:02:33]}  g5 {[%clk 0:02:25]} 15. Nh2 {[%clk 0:02:34]}  Qa5 {[%clk 0:02:22]} 16. Bd2 {[%clk 0:02:22]}  O-O-O {[%clk 0:02:20]} 17. Ng4 {[%clk 0:02:19]}  Kb8 {[%clk 0:02:18]} 18. Qf3 {[%clk 0:01:56]}  Rdf8 {[%clk 0:02:15]} 19. Qe3 {[%clk 0:01:52]}  Ka8 {[%clk 0:02:11]} 20. Rf1 {[%clk 0:01:43]}  Rfg8 {[%clk 0:02:07]} 21. Ne2 {[%clk 0:01:31]}  Bc8 {[%clk 0:01:58]} 22. b3 {[%clk 0:01:26]}  f5 {[%clk 0:01:50]} 23. exf6 {[%clk 0:01:22]}  Nxf6 {[%clk 0:01:50]} 24. Nxf6 {[%clk 0:01:22]}  Bxf6 {[%clk 0:01:49]} 25. bxc4 {[%clk 0:01:22]}  bxc3 {[%clk 0:01:13]} 26. Bxc3 {[%clk 0:01:21]}  Qa3 {[%clk 0:01:07]} 27. cxd5 {[%clk 0:01:14]}  exd5 {[%clk 0:01:05]} 28. Qf3 {[%clk 0:01:13]}  Rf8 {[%clk 0:00:59]} 29. Qxd5 {[%clk 0:01:12]}  Bb7 {[%clk 0:00:58]} 30. Be4 {[%clk 0:01:11]}  Rd8 {[%clk 0:00:50]} 31. Qb5 {[%clk 0:01:08]}  Rc8 {[%clk 0:00:25]} 32. Rab1 {[%clk 0:01:07]}  Qa6 {[%clk 0:00:25]} 33. Qxa6 {[%clk 0:00:59]}  Bxa6 {[%clk 0:00:25]} 34. d5 {[%clk 0:00:57]}  Bxc3 {[%clk 0:00:16]} 35. dxc6 {[%clk 0:00:57]}  Rc7 {[%clk 0:00:15]} 36. Nxc3 {[%clk 0:00:56]}  Bxf1 {[%clk 0:00:15]} 37. Kxf1 {[%clk 0:00:56]}  Re8 {[%clk 0:00:15]} 38. Nb5 {[%clk 0:00:52]}  Rcc8 {[%clk 0:00:12]} 39. Nd6 {[%clk 0:00:49]}  Rb8 {[%clk 0:00:09]} 40. Rxb8+ {[%clk 0:00:46]}  Rxb8 {[%clk 0:00:07]} 41. c7+ {[%clk 0:00:46]}  Rb7 {[%clk 0:00:08]} 42. Bxb7# {[%clk 0:00:45]} 1-0


[Site "https://www.chess.com"]

[Event "Titled Tuesday Blitz November 22 Early 2022"]
[White "Sreyas Payyappat"]
[Black "Pultinevicius, Paulius"]
[WhiteFideId "46674969"]
[BlackFideId "12809390"]
[WhiteElo "2083"]
[BlackElo "2493"]
[Result "0-1"]
[Round "01"]
[TimeControl "180+1"]
[Date "2022.11.23"]
[WhiteClock "0:01:35"]
[BlackClock "0:00:51"]

1. e4 {[%clk 0:03:00]}  g6 {[%clk 0:02:55]} 2. d4 {[%clk 0:03:00]}  Bg7 {[%clk 0:02:56]} 3. Nf3 {[%clk 0:03:01]}  d6 {[%clk 0:02:57]} 4. Be3 {[%clk 0:03:01]}  a6 {[%clk 0:02:57]} 5. Bd3 {[%clk 0:03:01]}  b5 {[%clk 0:02:57]} 6. O-O {[%clk 0:03:01]}  Bb7 {[%clk 0:02:57]} 7. Nbd2 {[%clk 0:03:02]}  Nd7 {[%clk 0:02:58]} 8. c3 {[%clk 0:03:02]}  c5 {[%clk 0:02:57]} 9. Re1 {[%clk 0:02:56]}  Ngf6 {[%clk 0:02:57]} 10. Bc2 {[%clk 0:02:55]}  Rc8 {[%clk 0:02:55]} 11. d5 {[%clk 0:02:54]}  O-O {[%clk 0:02:52]} 12. c4 {[%clk 0:02:53]}  Nb6 {[%clk 0:02:47]} 13. b3 {[%clk 0:02:51]}  Ng4 {[%clk 0:02:47]} 14. Rb1 {[%clk 0:02:50]}  Nxe3 {[%clk 0:02:47]} 15. Rxe3 {[%clk 0:02:51]}  b4 {[%clk 0:02:47]} 16. e5 {[%clk 0:02:50]}  Nd7 {[%clk 0:02:46]} 17. exd6 {[%clk 0:02:45]}  exd6 {[%clk 0:02:46]} 18. Ne4 {[%clk 0:02:46]}  Nf6 {[%clk 0:02:45]} 19. Nfg5 {[%clk 0:02:42]}  Nxe4 {[%clk 0:02:40]} 20. Nxe4 {[%clk 0:02:42]}  a5 {[%clk 0:02:41]} 21. Qf3 {[%clk 0:02:38]}  Rc7 {[%clk 0:02:22]} 22. Rbe1 {[%clk 0:02:36]}  Bc8 {[%clk 0:02:21]} 23. R3e2 {[%clk 0:02:34]}  f5 {[%clk 0:02:17]} 24. Ng3 {[%clk 0:02:32]}  h5 {[%clk 0:02:12]} 25. h3 {[%clk 0:02:27]}  h4 {[%clk 0:02:08]} 26. Nf1 {[%clk 0:02:27]}  Rcf7 {[%clk 0:02:01]} 27. Re3 {[%clk 0:02:12]}  Bd7 {[%clk 0:02:01]} 28. Qe2 {[%clk 0:02:11]}  Be5 {[%clk 0:01:48]} 29. Nd2 {[%clk 0:02:06]}  Bf4 {[%clk 0:01:44]} 30. Rf3 {[%clk 0:02:01]}  Re8 {[%clk 0:01:40]} 31. Qd1 {[%clk 0:02:00]}  Rxe1+ {[%clk 0:01:39]} 32. Qxe1 {[%clk 0:02:01]}  g5 {[%clk 0:01:37]} 33. g3 {[%clk 0:01:59]}  Re7 {[%clk 0:01:35]} 34. Qd1 {[%clk 0:01:57]}  hxg3 {[%clk 0:01:36]} 35. fxg3 {[%clk 0:01:56]}  Be3+ {[%clk 0:01:36]} 36. Kg2 {[%clk 0:01:56]}  Qe8 {[%clk 0:01:10]} 37. Nf1 {[%clk 0:01:52]}  Bd4 {[%clk 0:01:10]} 38. Bxf5 {[%clk 0:01:48]}  Re2+ {[%clk 0:01:08]} 39. Kh1 {[%clk 0:01:47]}  Bxf5 {[%clk 0:01:09]} 40. Qc1 {[%clk 0:01:41]}  Be4 {[%clk 0:01:01]} 41. Qxg5+ {[%clk 0:01:40]}  Bg7 {[%clk 0:01:02]} 42. Qf4 {[%clk 0:01:40]}  Qf8 {[%clk 0:00:51]} 43. Qxe4 {[%clk 0:01:34]}  Rxe4 {[%clk 0:00:51]} 44. Rxf8+ {[%clk 0:01:35]} 0-1


[Site "https://www.chess.com"]

[Event "Titled Tuesday Blitz November 22 Early 2022"]
[White "Streltsov, Alexey"]
[Black "Chong, Kai Ni Agnes"]
[WhiteFideId "24104434"]
[BlackFideId "5722071"]
[WhiteElo "2566"]
[BlackElo "1762"]
[Result "0-1"]
[Round "01"]
[TimeControl "180+1"]
[Date "2022.11.23"]
[WhiteClock "0:00:19"]
[BlackClock "0:00:19"]

1. d4 {[%clk 0:02:59]}  d5 {[%clk 0:02:58]} 2. Bf4 {[%clk 0:02:59]}  c5 {[%clk 0:02:57]} 3. e3 {[%clk 0:02:59]}  Qb6 {[%clk 0:02:54]} 4. Nc3 {[%clk 0:02:57]}  Nf6 {[%clk 0:02:44]} 5. Nb5 {[%clk 0:02:47]}  Na6 {[%clk 0:02:37]} 6. c3 {[%clk 0:02:46]}  Bd7 {[%clk 0:02:27]} 7. a4 {[%clk 0:02:46]}  e6 {[%clk 0:01:44]} 8. Nf3 {[%clk 0:02:40]}  Be7 {[%clk 0:01:39]} 9. a5 {[%clk 0:02:36]}  Qd8 {[%clk 0:01:25]} 10. Nd6+ {[%clk 0:02:36]}  Bxd6 {[%clk 0:01:21]} 11. Bxd6 {[%clk 0:02:37]}  Ne4 {[%clk 0:01:18]} 12. Bxa6 {[%clk 0:02:23]}  Nxd6 {[%clk 0:01:13]} 13. dxc5 {[%clk 0:02:23]}  bxa6 {[%clk 0:01:10]} 14. cxd6 {[%clk 0:02:23]}  Bb5 {[%clk 0:01:07]} 15. Qd4 {[%clk 0:01:45]}  O-O {[%clk 0:01:06]} 16. Qe5 {[%clk 0:01:46]}  Qd7 {[%clk 0:01:03]} 17. Nd4 {[%clk 0:01:46]}  Rab8 {[%clk 0:00:56]} 18. f4 {[%clk 0:01:42]}  Bc4 {[%clk 0:00:52]} 19. b4 {[%clk 0:01:39]}  Rfe8 {[%clk 0:00:45]} 20. Kd2 {[%clk 0:00:56]}  f6 {[%clk 0:00:41]} 21. Qh5 {[%clk 0:00:56]}  Qxd6 {[%clk 0:00:38]} 22. Nf3 {[%clk 0:00:44]}  d4 {[%clk 0:00:34]} 23. exd4 {[%clk 0:00:38]}  Qxf4+ {[%clk 0:00:32]} 24. Kc2 {[%clk 0:00:38]}  Qe4+ {[%clk 0:00:29]} 25. Kc1 {[%clk 0:00:20]}  Qe3+ {[%clk 0:00:28]} 26. Kc2 {[%clk 0:00:19]}  Qe2+ {[%clk 0:00:22]} 27. Kc1 {[%clk 0:00:19]}  Bd3 {[%clk 0:00:19]} 28. Nd2 {[%clk 0:00:19]}  Qxh5 {[%clk 0:00:19]} 0-1


[Site "https://www.chess.com"]

[Event "Titled Tuesday Blitz November 22 Early 2022"]
[White "Stribuk, Artiom"]
[Black "Gjestemoen-VonHirsch, Andre"]
[WhiteFideId "13515659"]
[BlackFideId "1539531"]
[WhiteElo "2371"]
[BlackElo "2198"]
[Result "1-0"]
[Round "01"]
[TimeControl "180+1"]
[Date "2022.11.23"]
[WhiteClock "0:00:07"]
[BlackClock "0:00:01"]

1. d4 {[%clk 0:02:58]}  g6 {[%clk 0:02:53]} 2. Nf3 {[%clk 0:02:57]}  Bg7 {[%clk 0:02:52]} 3. g3 {[%clk 0:02:58]}  Nf6 {[%clk 0:02:50]} 4. Bg2 {[%clk 0:02:58]}  O-O {[%clk 0:02:50]} 5. O-O {[%clk 0:02:59]}  d6 {[%clk 0:02:46]} 6. c4 {[%clk 0:02:59]}  Nbd7 {[%clk 0:02:44]} 7. Nc3 {[%clk 0:02:58]}  c5 {[%clk 0:02:43]} 8. b3 {[%clk 0:02:51]}  a6 {[%clk 0:02:37]} 9. Bb2 {[%clk 0:02:48]}  Rb8 {[%clk 0:02:37]} 10. a4 {[%clk 0:02:45]}  Qa5 {[%clk 0:02:18]} 11. e3 {[%clk 0:02:35]}  cxd4 {[%clk 0:01:42]} 12. Nxd4 {[%clk 0:02:36]}  Nc5 {[%clk 0:01:38]} 13. Qc2 {[%clk 0:01:47]}  Re8 {[%clk 0:01:02]} 14. Rfd1 {[%clk 0:01:43]}  Qc7 {[%clk 0:00:42]} 15. h3 {[%clk 0:01:25]}  e5 {[%clk 0:00:35]} 16. Nde2 {[%clk 0:01:23]}  Bd7 {[%clk 0:00:22]} 17. b4 {[%clk 0:01:04]}  Ne6 {[%clk 0:00:21]} 18. Qb3 {[%clk 0:00:48]}  Bc6 {[%clk 0:00:19]} 19. Nd5 {[%clk 0:00:48]}  Qd8 {[%clk 0:00:13]} 20. Rac1 {[%clk 0:00:41]}  Nc7 {[%clk 0:00:13]} 21. b5 {[%clk 0:00:33]}  Bxd5 {[%clk 0:00:12]} 22. cxd5 {[%clk 0:00:33]}  axb5 {[%clk 0:00:12]} 23. axb5 {[%clk 0:00:33]}  Na8 {[%clk 0:00:09]} 24. Bc3 {[%clk 0:00:25]}  Nd7 {[%clk 0:00:09]} 25. Bb4 {[%clk 0:00:25]}  Qe7 {[%clk 0:00:07]} 26. Nc3 {[%clk 0:00:25]}  b6 {[%clk 0:00:07]} 27. Ne4 {[%clk 0:00:25]}  Nc5 {[%clk 0:00:06]} 28. Qc4 {[%clk 0:00:19]}  Rec8 {[%clk 0:00:04]} 29. Bxc5 {[%clk 0:00:14]}  bxc5 {[%clk 0:00:05]} 30. Nc3 {[%clk 0:00:14]}  Qd7 {[%clk 0:00:05]} 31. Ra1 {[%clk 0:00:14]}  f5 {[%clk 0:00:03]} 32. Ra6 {[%clk 0:00:11]}  e4 {[%clk 0:00:03]} 33. Rda1 {[%clk 0:00:07]}  Bxc3 {[%clk 0:00:01]} 34. Qxc3 {[%clk 0:00:08]}  Qxb5 {[%clk 0:00:01]} 35. Ra7 {[%clk 0:00:08]}  Nc7 {[%clk 0:00:01]} 36. Qf6 {[%clk 0:00:07]} 1-0


[Site "https://www.chess.com"]

[Event "Titled Tuesday Blitz November 22 Early 2022"]
[White "Svane, Frederik"]
[Black "Diaz Rosas, Julio Cesar"]
[WhiteFideId "12923044"]
[BlackFideId "5105099"]
[WhiteElo "2466"]
[BlackElo "2246"]
[Result "1/2-1/2"]
[Round "01"]
[TimeControl "180+1"]
[Date "2022.11.22"]
[WhiteClock "0:00:08"]
[BlackClock "0:00:08"]

1. e4 {[%clk 0:02:56]}  c5 {[%clk 0:02:58]} 2. Nf3 {[%clk 0:02:57]}  d6 {[%clk 0:02:58]} 3. Bb5+ {[%clk 0:02:57]}  Nd7 {[%clk 0:02:55]} 4. d4 {[%clk 0:02:56]}  cxd4 {[%clk 0:02:53]} 5. Qxd4 {[%clk 0:02:57]}  a6 {[%clk 0:02:53]} 6. Bxd7+ {[%clk 0:02:58]}  Qxd7 {[%clk 0:02:54]} 7. Nc3 {[%clk 0:02:58]}  e5 {[%clk 0:02:51]} 8. Qb6 {[%clk 0:02:59]}  Be7 {[%clk 0:02:48]} 9. Bg5 {[%clk 0:02:50]}  Nf6 {[%clk 0:02:45]} 10. Bxf6 {[%clk 0:02:45]}  Bxf6 {[%clk 0:02:44]} 11. O-O-O {[%clk 0:02:45]}  O-O {[%clk 0:02:43]} 12. Rxd6 {[%clk 0:02:40]}  Qg4 {[%clk 0:02:43]} 13. Rxf6 {[%clk 0:02:40]}  gxf6 {[%clk 0:02:41]} 14. Qxf6 {[%clk 0:02:41]}  Qf4+ {[%clk 0:02:32]} 15. Qxf4 {[%clk 0:02:41]}  exf4 {[%clk 0:02:33]} 16. Nd5 {[%clk 0:02:42]}  Be6 {[%clk 0:02:30]} 17. Nxf4 {[%clk 0:02:42]}  Rac8 {[%clk 0:02:29]} 18. b3 {[%clk 0:02:29]}  Rfe8 {[%clk 0:02:26]} 19. Kb2 {[%clk 0:02:24]}  Bg4 {[%clk 0:02:24]} 20. Nd5 {[%clk 0:02:09]}  Kg7 {[%clk 0:02:19]} 21. Nd2 {[%clk 0:02:09]}  Be6 {[%clk 0:02:17]} 22. Nf4 {[%clk 0:01:59]}  Red8 {[%clk 0:02:06]} 23. Nd3 {[%clk 0:01:49]}  b5 {[%clk 0:01:58]} 24. Re1 {[%clk 0:01:46]}  Rc7 {[%clk 0:01:57]} 25. Nf1 {[%clk 0:01:27]}  a5 {[%clk 0:01:53]} 26. f4 {[%clk 0:01:26]}  f5 {[%clk 0:01:45]} 27. Ng3 {[%clk 0:01:24]}  fxe4 {[%clk 0:01:43]} 28. Rxe4 {[%clk 0:01:25]}  Bf7 {[%clk 0:01:36]} 29. Re5 {[%clk 0:01:19]}  a4 {[%clk 0:01:32]} 30. Nf5+ {[%clk 0:01:06]}  Kf8 {[%clk 0:01:29]} 31. Ne3 {[%clk 0:01:00]}  Rb8 {[%clk 0:00:56]} 32. g4 {[%clk 0:00:53]}  Ra7 {[%clk 0:00:55]} 33. f5 {[%clk 0:00:43]}  a3+ {[%clk 0:00:52]} 34. Kc3 {[%clk 0:00:41]}  Rc7+ {[%clk 0:00:47]} 35. Kb4 {[%clk 0:00:41]}  Re7 {[%clk 0:00:41]} 36. Rxe7 {[%clk 0:00:36]}  Kxe7 {[%clk 0:00:42]} 37. Kxa3 {[%clk 0:00:37]}  Ra8+ {[%clk 0:00:37]} 38. Kb2 {[%clk 0:00:37]}  Kd6 {[%clk 0:00:37]} 39. a3 {[%clk 0:00:33]}  Bd5 {[%clk 0:00:36]} 40. h4 {[%clk 0:00:30]}  Be4 {[%clk 0:00:36]} 41. Nf4 {[%clk 0:00:26]}  Ke5 {[%clk 0:00:36]} 42. Ne6 {[%clk 0:00:27]}  Ra7 {[%clk 0:00:29]} 43. Kc3 {[%clk 0:00:19]}  Rxa3 {[%clk 0:00:22]} 44. Ng5 {[%clk 0:00:09]}  Ra7 {[%clk 0:00:19]} 45. Kb4 {[%clk 0:00:10]}  Bc6 {[%clk 0:00:15]} 46. Kc5 {[%clk 0:00:05]}  Be8 {[%clk 0:00:14]} 47. c4 {[%clk 0:00:05]}  bxc4 {[%clk 0:00:14]} 48. bxc4 {[%clk 0:00:06]}  Kf4 {[%clk 0:00:13]} 49. Nd5+ {[%clk 0:00:06]}  Kxg4 {[%clk 0:00:13]} 50. Nf6+ {[%clk 0:00:07]}  Kxh4 {[%clk 0:00:12]} 51. Ngxh7 {[%clk 0:00:07]}  Bf7 {[%clk 0:00:12]} 52. Kd6 {[%clk 0:00:04]}  Bxc4 {[%clk 0:00:11]} 53. Ke5 {[%clk 0:00:03]}  Bd3 {[%clk 0:00:10]} 54. Nf8 {[%clk 0:00:02]}  Ra5+ {[%clk 0:00:10]} 55. Nd5 {[%clk 0:00:03]}  Bxf5 {[%clk 0:00:09]} 56. Kxf5 {[%clk 0:00:03]}  Rxd5+ {[%clk 0:00:09]} 57. Ke4 {[%clk 0:00:04]}  Ra5 {[%clk 0:00:09]} 58. Ng6+ {[%clk 0:00:05]}  Kg5 {[%clk 0:00:09]} 59. Ne5 {[%clk 0:00:06]}  Kf6 {[%clk 0:00:08]} 60. Nf3 {[%clk 0:00:06]}  Ke6 {[%clk 0:00:08]} 61. Nd4+ {[%clk 0:00:07]}  Kf6 {[%clk 0:00:09]} 62. Nf3 {[%clk 0:00:07]}  Ra4+ {[%clk 0:00:09]} 63. Nd4 {[%clk 0:00:08]}  Rb4 {[%clk 0:00:08]} 64. Kd5 {[%clk 0:00:08]}  Ra4 {[%clk 0:00:08]} 65. Ke4 {[%clk 0:00:09]}  Ra5 {[%clk 0:00:08]} 66. Nf3 {[%clk 0:00:08]} 1/2-1/2


[Site "https://www.chess.com"]